[Event "22nd Rochefort Festival Masters 2024"]
[Site "Rochefort"]
[Date "2024.02.19"]
[Round "4.2"]
[White "Sivuk, Vitaly"]
[Black "Laurent-Paoli, Pierre"]
[Result "1/2-1/2"]
[ECO "E51"]
[WhiteElo "2502"]
[BlackElo "2529"]
[Annotator "TA"]
[PlyCount "134"]
[EventDate "2024.02.18"]
[EventType "swiss"]
[EventCountry "FRA"]
[SourceTitle "playchess.com"]
[Source "ChessBase"]
[SourceQuality "1"]
[TimeControl "40/5400+30:1800+30"]

{[%evp 50,134,-2,-2,25,31,12,20,12,12,28,0,0,0,0,0,0,0,0,-8,0,0,0,0,0,0,0,0,0,0,0,0,0,0,0,0,0,0,0,0,0,0,0,0,0,0,0,0,0,0,0,0,0,0,0,0,0,0,0,0,0,0,0,0,0,0,0,0,0,0,0,0,0,0,0,0,0,0,0,0,0,0,0,0,0,0,0]} 1. d4 {[%emt 0:10:05]} Nf6 {[%emt 0:01:03]} 2. c4 {[%emt 0:00:09]} e6 {[%emt 0:00:28]} 3. Nf3 {[%emt 0:00:11]} d5 {[%emt 0:00:34]} 4. Nc3 {[%emt 0:00:09]} Bb4 {[%emt 0:00:19]} 5. e3 {[%emt 0:10:20]} O-O {[%emt 0:01:07]} 6. Bd2 {[%emt 0:01:47]} Nbd7 {[%emt 0:05:28]} 7. a3 $1 {[%emt 0:01:49][%mdl 4] 7.a3 is a critical line.} Be7 {[%emt 0:06:13] E51: Nimzo-Indian: Rubinstein: 4...0-0 5 Nf3 d5.} 8. Qc2 {[%emt 0:00:58]} dxc4 {[%emt 0:10:15]} 9. Bxc4 {[%emt 0:00:14]} c5 {[%emt 0:00:05]} 10. O-O {[%emt 0:10:45]} a6 $146 {[%emt 0:02:40]} ({Predecessor:} 10... cxd4 11. exd4 Nb6 12. Ba2 Bd7 13. Ne5 Rc8 14. Qd3 Na4 15. Bb3 Nxc3 16. bxc3 Bc6 {½-½ Nepomniachtchi,I (2771)-Caruana,F (2795) Sinquefield Cup 10th 2023 (4)}) 11. dxc5 {[%emt 0:07:30]} Nxc5 {[%emt 0:04:23]} 12. b4 {[%emt 0:01:57]} Ncd7 {[%emt 0:03:38]} 13. Nd4 {[%emt 0:11:55]} Ne5 {[%emt 0:05:20]} 14. Be2 {[%emt 0:00:22]} Bd7 {[%emt 0:01:22]} 15. f4 {[%emt 0:04:32]} Nc6 {[%emt 0:00:56]} 16. Nf3 {[%emt 0:02:23]} Rc8 {[%emt 0:02:07]} 17. Rac1 {[%emt 0:03:17]} b5 {[%emt 0:19:40]} 18. Qb1 {[%emt 0:11:31]} Qb6 {[%emt 0:03:53]} 19. Ng5 {[%emt 0:00:16]} Nd4 {[%emt 0:06:51]} 20. Bd3 {[%emt 0:02:49]} Nf5 {[%emt 0:02:47]} 21. Kh1 {[%emt 0:05:05]} h6 {[%emt 0:01:50]} 22. e4 {[%emt 0:00:13]} Ne3 {[%emt 0:04:54]} 23. Bxe3 {[%emt 0:00:42]} Qxe3 {[%emt 0:00:09]} 24. e5 {[%emt 0:00:50]} hxg5 {[%emt 0:03:54]} 25. exf6 {[%emt 0:01:14]} gxf6 {[%emt 0:04:45]} 26. Nd5 $1 {[%emt 0:03:44]} Rxc1 {[%emt 0:03:54]} (26... exd5 $5 27. Rce1 Qb6 28. Rxe7 Qd6 29. Rxd7 Qxd7 $11) 27. Nxe7+ {[%emt 0:00:06]} (27. Nxe3 Rxb1 28. Bxb1 f5 $17) 27... Kg7 {[%emt 0:00:01]} 28. Qxc1 {[%emt 0:00:37]} Qxc1 {[%emt 0:01:26]} (28... Qxd3 $2 {too greedy.} 29. fxg5 (29. Rd1 Qe2 $18) 29... Rh8 30. gxf6+ (30. Rxf6 Re8 $11) 30... Kf8 31. Rd1 $18) 29. Rxc1 {[%emt 0:00:06]} Re8 $1 {[%emt 0:00:32]} 30. Ng6 {[%emt 0:00:51]} (30. Nc6 $5 Rc8 31. Be4 $11) 30... fxg6 {[%emt 0:00:49]} 31. Rc7 {[%emt 0:00:04]} Rd8 {[%emt 0:00:31]} 32. fxg5 {[%emt 0:00:38]} fxg5 {[%emt 0:00:02]} 33. Kg1 {[%emt 0:00:19]} Kf6 {[%emt 0:00:40]} 34. Be4 {[%emt 0:00:07]} Be8 {[%emt 0:01:09]} 35. Kf2 {[%emt 0:01:23]} Rd6 {[%emt 0:01:13]} 36. Ke3 {[%emt 0:00:39]} Ke5 {[%emt 0:02:00]} 37. Rc8 {[%emt 0:03:17]} Bd7 {[%emt 0:00:32]} 38. Rg8 {[%emt 0:01:31]} Bc6 {[%emt 0:00:24]} 39. Bc2 {[%emt 0:00:27]} Bxg2 {[%emt 0:00:45]} 40. Rxg6 {[%emt 0:00:06]} Bh3 {[%emt 0:01:00]} 41. Rxg5+ {[%emt 0:30:13]} Bf5 {[%emt 0:30:07]} 42. h4 {[%emt 0:00:00]} Rc6 {[%emt 0:00:00]} 43. Bxf5 {[%emt 0:00:00]} exf5 {[%emt 0:00:00]} 44. h5 {[%emt 0:00:00]} Rc3+ {[%emt 0:00:00]} 45. Kf2 {[%emt 0:00:00]} Rxa3 {[%emt 0:00:00]} 46. h6 {[%emt 0:00:00]} Rh3 {[%emt 0:00:00]} 47. Rg6 {[%emt 0:00:00]} Kd5 {[%emt 0:00:00]} 48. Rxa6 {[%emt 0:00:00]} Kc4 {[%emt 0:00:00]} 49. Kg2 {[%emt 0:00:00]} Rh5 {[%emt 0:00:00]} 50. Kg3 {[%emt 0:00:00]} Kxb4 {[%emt 0:00:00]} 51. Kf4 {[%emt 0:00:00]} Kc5 {[%emt 0:00:00]} 52. Rf6 {[%emt 0:00:00]} Kc4 {[%emt 0:00:00]} 53. Rc6+ {[%emt 0:00:00]} Kb3 {[%emt 0:00:00]} 54. Rg6 {[%emt 0:00:13]} b4 {[%emt 0:00:00]} 55. Ke5 {[%emt 0:00:15]} Kc4 {[%emt 0:00:00]} 56. Kf6 {[%emt 0:00:25]} b3 {[%emt 0:00:00]} (56... f4 $5 57. Kg7 $8 b3 58. Rc6+ Kd3 $11) 57. Kg7 {[%emt 0:00:03]} b2 {[%emt 0:03:13]} 58. Rb6 {[%emt 0:00:24]} Kc3 {[%emt 0:00:16]} 59. Rc6+ {[%emt 0:01:33]} Kd2 {[%emt 0:00:11]} 60. Rd6+ {[%emt 0:00:06]} Kc1 {[%emt 0:00:31]} (60... Kc3 $5 61. Rc6+ $8 Kb3 62. Rb6+ Ka2 (62... Kc2 63. Rc6+ Kd2 64. Rb6 $11) 63. Ra6+ Kb3 64. Rb6+ Ka2 (64... Kc2 65. Rc6+ Kd2 66. Rd6+ Kc1 67. Rc6+ Kd2 $11) 65. Ra6+ Kb1 $11) 61. Rc6+ {[%emt 0:00:05]} Kb1 {[%emt 0:00:16]} 62. h7 {[%emt 0:00:06]} Rxh7+ {[%emt 0:00:30]} 63. Kxh7 {[%emt 0:00:05]} f4 {[%emt 0:00:03]} 64. Rf6 {[%emt 0:00:21]} f3 {[%emt 0:00:17]} (64... Kc2 $5 65. Rc6+ $8 Kd2 66. Rd6+ Kc1 67. Rc6+ Kd2 68. Rd6+ Kc1 69. Rc6+ Kd2 $11) 65. Rxf3 {[%emt 0:00:05]} Ka2 {[%emt 0:00:03]} 66. Rf2 {[%emt 0:00:08]} Ka1 {[%emt 0:00:02]} 67. Rxb2 {[%emt 0:00:04]} Kxb2 {[%emt 0:00:03]} 1/2-1/2

[Event "22nd Rochefort Festival Masters 2024"]
[Site "Rochefort"]
[Date "2024.02.19"]
[Round "4.3"]
[White "Lucas, Arthur"]
[Black "Eugene, Floryan"]
[Result "1/2-1/2"]
[ECO "C45"]
[WhiteElo "2332"]
[BlackElo "2398"]
[Annotator "TA"]
[PlyCount "57"]
[EventDate "2024.02.18"]
[EventType "swiss"]
[EventCountry "FRA"]
[SourceTitle "playchess.com"]
[Source "ChessBase"]
[SourceQuality "1"]
[TimeControl "40/5400+30:1800+30"]

{[%evp 14,57,7,-35,0,-6,0,0,0,-2,0,0,0,0,0,0,0,0,0,0,0,0,0,0,0,0,0,0,0,0,0,0,0,0,0,0,0,0,0,0,0,0,0,0,0,0]} 1. e4 {[%emt 0:17:34]} e5 {[%emt 0:00:12]} 2. Nf3 {[%emt 0:00:07]} Nc6 {[%emt 0:00:06]} 3. d4 {[%emt 0:00:09]} exd4 {[%emt 0:00:06]} 4. Nxd4 {[%emt 0:00:16]} Nf6 {[%emt 0:00:09][%cal Bg8f6,Bf6d5,Bd5b4][%mdl 32]} 5. Nxc6 {[%emt 0:00:10]} bxc6 {[%emt 0:00:21]} 6. e5 {[%emt 0:00:05]} Qe7 {[%emt 0:00:06]} 7. Qe2 {[%emt 0:00:04]} Nd5 {[%emt 0:00:06]} 8. h4 {[%emt 0:00:22]} a5 {[%emt 0:01:58]} 9. g3 {[%emt 0:00:22] The position is equal.} Ba6 {[%emt 0:00:35]} 10. c4 $1 {[%emt 0:00:25]} f6 {[%emt 0:01:30]} 11. Nd2 {[%emt 0:00:36]} fxe5 {[%emt 0:01:14]} 12. b3 {[%emt 0:00:17]} Nb4 {[%emt 0:00:31] [#] And now ...Nc2+ would win.} 13. Ne4 {[%emt 0:00:12]} d5 {[%emt 0:00:26]} 14. a3 $1 {[%emt 0:00:35]} dxe4 {[%emt 0:01:21]} 15. axb4 {[%emt 0:00:06]} Qxb4+ {[%emt 0:00:52]} 16. Bd2 {[%emt 0:00:04]} Qxb3 {[%emt 0:00:26]} 17. Qxe4 {[%emt 0:01:09]} Bb4 {[%emt 0:01:52]} 18. Qxc6+ {[%emt 0:02:31]} Ke7 {[%emt 0:01:04] [#] ( -> ...Bxd2+)} 19. Qxc7+ {[%emt 0:01:10]} Kf8 {[%emt 0:00:34] aiming for ...Bxd2+.} 20. Rd1 {[%emt 0:02:36][%cal Of1d3] Threatens to win with Bd3!} Bxd2+ {[%emt 0:03:01]} 21. Rxd2 {[%emt 0:05:33]} Qb1+ {[%emt 0:04:49]} 22. Rd1 {[%emt 0:00:26]} Qe4+ {[%emt 0:00:08]} 23. Kd2 {[%emt 0:00:04][%cal Od2c3]} Qxh1 {[%emt 0:00:09]} 24. Qd6+ {[%emt 0:00:06]} Kg8 {[%emt 0:00:20]} 25. Qe6+ {[%emt 0:00:32]} Kf8 {[%emt 0:00:07] ...Rd8+ would now be deadly.} 26. Qd6+ {[%emt 0:00:04]} Kg8 {[%emt 0:00:03] White must now prevent ...Qb7.} 27. Qe6+ {[%emt 0:00:05]} Kf8 {[%emt 0:00:04] ...Rd8+ is the strong threat.} 28. Qd6+ {[%emt 0:00:06]} Kg8 {[%emt 0:00:05] Hoping for ...Qb7.} 29. Qe6+ {[%emt 1:09:14] A rather calm draw.   Weighted Error Value: White=0.02 (flawless) /Black=0.02 (flawless) .  OK:         	White=11    	Black=5      Best:        	White=4     	Black=4      Strong:       	White=2     	---} 1/2-1/2

[Event "22nd Rochefort Festival Masters 2024"]
[Site "Rochefort"]
[Date "2024.02.19"]
[Round "4.4"]
[White "Grimault, Nathan"]
[Black "Droin, Augustin"]
[Result "0-1"]
[ECO "D20"]
[WhiteElo "2098"]
[BlackElo "2471"]
[Annotator "TA"]
[PlyCount "74"]
[EventDate "2024.02.18"]
[EventType "swiss"]
[EventCountry "FRA"]
[SourceTitle "playchess.com"]
[Source "ChessBase"]
[SourceQuality "1"]
[TimeControl "40/5400+30:1800+30"]

{[%evp 10,74,8,18,19,29,55,48,49,46,71,0,0,0,0,0,8,0,0,0,16,23,57,14,12,-141,-140,-215,-209,-170,-46,-64,-46,-22,-21,-27,0,19,47,46,61,54,68,-11,0,0,29,18,31,-80,-56,-347,-338,-318,-333,-612,-588,-618,-611,-614,-567,-618,-607,-595,-568,-918,-863]} 1. d4 {[%emt 0:00:02]} d5 {[%emt 0:07:58]} 2. c4 {[%emt 0:00:35]} dxc4 {[%emt 0:00:36]} 3. e4 {[%emt 0:02:59]} e5 {[%emt 0:01:15]} 4. Nf3 {[%emt 0:00:10]} exd4 {[%emt 0:01:01]} 5. Bxc4 {[%emt 0:06:14]} Nc6 {[%emt 0:00:04]} 6. O-O {[%emt 0:01:49]} Be6 {[%emt 0:00:03]} 7. Bb5 {[%emt 0:07:10]} Qd6 {[%emt 0:16:58]} 8. Qxd4 {[%emt 0:05:15]} (8. Nxd4 $2 O-O-O 9. Bxc6 bxc6 $19 (9... Qxd4 10. Bd5 $17)) 8... a6 {[%emt 0:01:56] White is slightly better.} 9. Qa4 {[%emt 0:09:51] Strongly threatening Rd1.} (9. Qxd6 {simplifies} cxd6 10. Bxc6+ bxc6 11. Nd4) 9... O-O-O {[%emt 0:06:15]} 10. Be2 {[%emt 0:20:22]} (10. Bxc6 $16 {[%cal Oc6d5] Bd5! would now be deadly.} Qxc6 11. Qxc6 bxc6 12. Nc3) 10... Nd4 $11 {[%emt 0:09:15]} 11. Nxd4 {[%emt 0:00:15]} Qxd4 {[%emt 0:00:03]} 12. Qc2 {[%emt 0:01:05] Be3 is the strong threat.} Nf6 {[%emt 0:00:16]} 13. Nc3 {[%emt 0:01:07] With the idea Rd1.} Bd6 {[%emt 0:02:31]} 14. Be3 {[%emt 0:05:01]} Qb4 {[%emt 0:00:27]} 15. Rac1 {[%emt 0:03:05]} h5 {[%emt 0:09:53]} 16. a3 {[%emt 0:02:30]} Qb3 {[%emt 0:02:40]} 17. Qb1 $2 {[%emt 0:16:54] [#]} ({White should try} 17. Qxb3 $11 Bxb3 18. f4) 17... Ng4 $17 {[%emt 0:10:49]} 18. Bxg4 {[%emt 0:03:31]} (18. Bd1 $17 {was necessary.} Bxh2+ 19. Kh1 Rxd1 20. Rfxd1) 18... hxg4 $19 {[%emt 0:00:54]} 19. g3 {[%emt 0:00:13] White is weak on the light squares} Rh5 {[%emt 0:01:07]} (19... Be5 20. Nd5 Kb8 (20... Bxb2 $2 21. Rxc7+ Kb8 22. Rc2 $18) 21. Rc5 $17) (19... Rh3 $19 {White must now prevent ...Rdh8.} 20. Kg2 Bc4) 20. Ne2 {[%emt 0:02:16]} Rdh8 {[%emt 0:01:11] Black has more active pieces.} 21. h4 {[%emt 0:00:08]} gxh3 {[%emt 0:00:05]} 22. Kh2 $1 {[%emt 0:00:24]} Bg4 {[%emt 0:04:04]} (22... Rd8 {is more appropriate.}) 23. Rc3 $11 {[%emt 0:01:39]} Qa4 {[%emt 0:01:34] Really sharp!} 24. Nf4 {[%emt 0:00:23][%mdl 1024] White has compensation.} Re5 {[%emt 0:03:54]} 25. f3 {[%emt 0:02:07][%cal Of1d1]} Be6 {[%emt 0:00:36]} 26. Qd3 {[%emt 0:00:41]} (26. Qc1 $14) 26... Kb8 $36 {[%emt 0:01:56][%mdl 2048] White is under pressure.} 27. Rfc1 {[%emt 0:03:34]} Rd8 {[%emt 0:01:05]} 28. b4 {[%emt 0:01:06][%cal Od3d4]} a5 {[%emt 0:04:05]} 29. Rc5 {[%emt 0:03:44]} Rxc5 {[%emt 0:00:33]} (29... axb4 $2 30. Rxe5 (30. Nxh3 $2 Rxc5 31. Rxc5 Bxg3+ 32. Kxg3 Rxd3 $19) 30... bxa3 31. Nxe6 (31. Nxh3 a2 $17) 31... fxe6 32. Qb5 Qxb5 33. Rxb5 $18) 30. Rxc5 {[%emt 0:00:15][%mdl 8192] [#] White does not recover from this.} (30. Bxc5 $15 axb4 31. Bxb4) 30... axb4 {[%emt 0:00:48]} 31. axb4 {[%emt 0:00:26]} Be7 {[%emt 0:02:32]} (31... Qxb4 32. Rc3 $19) 32. Ra5 $2 {[%emt 0:01:01]} (32. Qc2 Bb3 (32... Qxb4 33. Nxe6 Bxc5 34. Nxc5 $11) 33. Qb2 Bxc5 (33... Qxb4 34. Rc1 $17) 34. bxc5) 32... Rxd3 {[%emt 0:00:05] Black is clearly winning.} 33. Ba7+ {[%emt 0:00:01]} Kc8 {[%emt 0:00:04]} 34. Rxa4 {[%emt 0:00:04]} Rd2+ {[%emt 0:00:15]} (34... Rxf3 35. Nxe6 fxe6 36. Bd4 $19) 35. Kh1 {[%emt 0:00:11]} b6 {[%emt 0:00:02]} 36. Bxb6 {[%emt 0:01:00]} cxb6 {[%emt 0:00:03]} 37. Ra7 {[%emt 0:00:06]} Bxb4 {[%emt 0:00:40] Weighted Error Value: White=0.55/Black=0.18 (very precise) .  Loses game:     	White=1     	---        Mistake:       	White=6     	Black=2      Inaccurate:     	White=1     	Black=4      OK:         	White=13    	Black=7      Best:        	White=1     	Black=3      Strong:       	White=1     	---} 0-1

[Event "22nd Rochefort Festival Masters 2024"]
[Site "Rochefort"]
[Date "2024.02.19"]
[Round "4.5"]
[White "Mullon, Jean-Baptiste"]
[Black "Morais, Thomas"]
[Result "1-0"]
[ECO "B22"]
[WhiteElo "2305"]
[BlackElo "2045"]
[Annotator "TA"]
[PlyCount "123"]
[EventDate "2024.02.18"]
[EventType "swiss"]
[EventCountry "FRA"]
[SourceTitle "playchess.com"]
[Source "ChessBase"]
[SourceQuality "1"]
[TimeControl "40/5400+30:1800+30"]

{[%evp 14,123,14,1,39,27,32,41,47,29,44,18,18,20,86,45,87,80,72,54,147,162,174,166,158,143,155,88,85,84,238,243,469,270,285,285,471,470,465,421,442,439,421,288,277,265,256,269,277,258,257,241,237,229,250,250,243,243,243,243,341,243,243,243,362,362,362,286,318,313,577,566,566,545,593,347,29953,29944,29953,29957,29953,29952,29955,29958,29963,29958,29964,29965,29963,29964,29971,29970,29981,29967,29975,29975,29977,29978,29977,29976,29979,29978,29978,29977,29979,29973,29972,0,29977,0,29978,29979]} 1. e4 {[%emt 0:03:00]} c5 {[%emt 0:00:12]} 2. Nf3 {[%emt 0:01:01]} e6 {[%emt 0:00:09]} 3. c3 {[%emt 0:00:05]} d5 {[%emt 0:00:29]} 4. exd5 {[%emt 0:00:05]} Qxd5 {[%emt 0:00:09]} 5. d4 {[%emt 0:00:04]} Nf6 {[%emt 0:01:15]} 6. Be2 {[%emt 0:00:04]} Nc6 {[%emt 0:01:56]} 7. O-O {[%emt 0:00:37]} Be7 {[%emt 0:00:19][%cal Bf8e7,Be7c5,Bc5b6][%mdl 32]} 8. dxc5 {[%emt 0:00:10]} Qxd1 {[%emt 0:08:00]} 9. Rxd1 {[%emt 0:00:20]} Bxc5 {[%emt 0:00:08]} 10. b4 {[%emt 0:00:06]} Bb6 {[%emt 0:09:32] Weiß steht etwas besser.} 11. b5 {[%emt 0:09:10]} Ne7 {[%emt 0:01:05]} 12. Nbd2 {[%emt 0:02:26]} Ned5 {[%emt 0:04:21]} 13. Bb2 {[%emt 0:01:06]} O-O {[%emt 0:08:50]} (13... Ng4 $11 14. Rf1 Nf4) 14. Ne5 {[%emt 0:13:02]} Rd8 {[%emt 0:21:00]} 15. Bf3 {[%emt 0:13:34]} Nd7 {[%emt 0:12:43]} (15... Ne3 $2 16. fxe3 Bxe3+ 17. Kh1 Bxd2 18. Bc1 $18) 16. Nd3 {[%emt 0:12:32]} Nc5 {[%emt 0:03:16]} (16... Ba5 $1 $14) 17. Nxc5 $16 {[%emt 0:01:48]} Bxc5 {[%emt 0:00:05]} 18. Nb3 {[%emt 0:01:41]} Be7 {[%emt 0:01:31]} 19. c4 $36 {[%emt 0:00:11][%mdl 2048] Weiss ist am Drücker.} Nb6 {[%emt 0:01:51] [#]} 20. Na5 {[%emt 0:04:39] Weiß steht aktiver.} (20. Rxd8+ $142 $1 Bxd8 21. Rd1) 20... Rxd1+ {[%emt 0:07:49]} 21. Rxd1 {[%emt 0:00:07][%cal Ob2d4]} a6 $2 {[%emt 0:00:06]} (21... f6 $16) 22. Bd4 $18 {[%emt 0:10:13]} (22. Nxb7 $6 axb5 23. Nd6 (23. cxb5 Nd5 $11) 23... Rxa2) 22... Nd7 {[%emt 0:00:05]} (22... Na4) 23. b6 {[%emt 0:00:20]} (23. Bxb7 Bxb7 24. Be3 (24. Nxb7 axb5 25. c5 Nb8 $11) 24... Bc8 $14) (23. Nxb7 $142 e5 24. Bc3 axb5 25. Nd6 (25. cxb5 Ra3 $16)) 23... Rb8 {[%emt 0:01:36]} 24. c5 {[%emt 0:03:50] [#] Zielt auf c6 ab.} e5 $2 {[%emt 0:05:41]} (24... Kf8 25. Bxb7 Bxb7) 25. Be3 {[%emt 0:00:05] Droht stark c6.} Kf8 {[%emt 0:00:47]} 26. c6 {[%emt 0:01:05]} (26. Nxb7 e4 27. Na5 (27. Bxe4 Bxb7 28. Bxb7 Nxc5 $16) (27. Bg4 Nxb6 28. Bxc8 Nc4 $16) 27... exf3 $18) 26... bxc6 {[%emt 0:00:23]} 27. Nxc6 {[%emt 0:00:07]} ({Bloß nicht} 27. b7 Bxb7 28. Rxd7 Ba8) 27... Rxb6 {[%emt 0:00:40]} 28. Bxb6 {[%emt 0:00:14]} Nxb6 {[%emt 0:00:08]} 29. Nxe5 {[%emt 0:03:13]} Be6 {[%emt 0:00:30]} 30. Rb1 {[%emt 0:03:28]} Bc5 {[%emt 0:01:49]} 31. Be2 {[%emt 0:07:25]} Ke7 {[%emt 0:03:55]} 32. Bxa6 {[%emt 0:00:46]} Bxa2 {[%emt 0:00:04]} 33. Rc1 {[%emt 0:00:25]} Kd6 {[%emt 0:00:26]} 34. Nc4+ {[%emt 0:00:25]} Bxc4 {[%emt 0:00:58]} 35. Bxc4 {[%emt 0:00:05]} Nxc4 {[%emt 0:00:15]} 36. Rxc4 {[%emt 0:00:04][%mdl 4096] Endspiel. KR-KB} Kd5 {[%emt 0:00:18]} (36... h5 $142 37. Rc2 g6) 37. Ra4 {[%emt 0:00:40]} Ke6 {[%emt 0:03:16]} 38. Kf1 {[%emt 0:00:06]} f6 {[%emt 0:01:57]} (38... h5 {ist wohl besser.} 39. Ra5 Kd6) 39. Ke2 {[%emt 0:00:07]} Kf7 {[%emt 0:00:23]} 40. f3 {[%emt 0:00:06]} Bd6 {[%emt 0:00:18]} 41. h3 {[%emt 0:30:49]} Kg6 $2 {[%emt 0:32:07]} (41... h5 {ist eine bessere Verteidigung.} 42. f4 f5 43. Ra7+ Kf6) 42. Ke3 {[%emt 0:00:41]} Kf5 {[%emt 0:00:00]} 43. Ra5+ {[%emt 0:00:00]} Kg6 {[%emt 0:00:00]} 44. Ke4 {[%emt 0:00:00]} h5 $2 {[%emt 0:00:00]} (44... Bg3 $18 45. f4 h5) 45. Ra6 {[%emt 0:00:00]} Be5 {[%emt 0:00:00]} 46. f4 {[%emt 0:00:00][%cal Bf3f4,Bf4f5][%mdl 32]} Bc3 {[%emt 0:00:00]} 47. Rc6 {[%emt 0:00:00]} Bb2 {[%emt 0:00:00]} 48. Rc2 {[%emt 0:00:00]} Ba3 {[%emt 0:00:00]} 49. Rc7 {[%emt 0:00:00]} Bb4 {[%emt 0:00:00]} 50. f5+ {[%emt 0:00:00]} Kh6 {[%emt 0:00:00]} 51. Kd5 {[%emt 0:00:00]} Bd2 {[%emt 0:00:00]} 52. Ke6 {[%emt 0:00:00]} Kh7 {[%emt 0:00:00]} 53. Rc8 {[%emt 0:00:00]} h4 {[%emt 0:00:00]} 54. Rc4 {[%emt 0:00:00]} Bg5 {[%emt 0:00:00]} 55. Kf7 {[%emt 0:00:00]} Kh6 {[%emt 0:00:00]} 56. Re4 {[%emt 0:00:00]} Kh7 {[%emt 0:00:00]} 57. Rg4 {[%emt 0:00:00]} Kh6 {[%emt 0:00:00]} 58. Ra4 {[%emt 0:00:00]} Kh7 {[%emt 0:00:00]} 59. Ra8 {[%emt 0:00:00]} Bf4 {[%emt 0:00:00]} 60. Ra4 {[%emt 0:00:00]} Bg5 {[%emt 0:00:00]} 61. Rg4 {[%emt 0:00:00]} Kh6 {[%emt 0:00:00]} 62. g3 {[%emt 0:00:00] Gewichteter Fehlerwert: Weiß=0.35/Schwarz=0.33.  Fehler:       	Weiß=2     	Schwarz=9     Ungenau:       	Weiß=4     	Schwarz=1     OK:         	Weiß=11    	Schwarz=14    Bester:       	Weiß=4     	Schwarz=1} 1-0

[Event "22nd Rochefort Festival Masters 2024"]
[Site "Rochefort"]
[Date "2024.02.20"]
[Round "5.1"]
[White "Laurent-Paoli, Pierre"]
[Black "Romanov, Evgeny"]
[Result "1/2-1/2"]
[ECO "C60"]
[WhiteElo "2529"]
[BlackElo "2578"]
[Annotator "TA"]
[PlyCount "74"]
[EventDate "2024.02.18"]
[EventType "swiss"]
[EventCountry "FRA"]
[SourceTitle "playchess.com"]
[Source "ChessBase"]
[SourceQuality "1"]
[TimeControl "40/5400+30:1800+30"]

{[%evp 9,74,15,58,48,54,65,53,42,32,32,60,36,39,11,17,10,6,-3,31,14,17,0,0,0,6,7,11,14,32,0,0,0,0,0,0,0,0,0,0,0,0,0,0,0,0,0,0,0,0,0,0,0,0,0,0,0,0,0,0,0,0,0,0,0,0,-2,0]} 1. e4 {[%emt 1:31:00]} e5 {[%emt 1:31:00]} 2. Nf3 {[%emt 0:00:30]} Nc6 {[%emt 0:00:30]} 3. Bb5 {[%emt 0:00:00]} Nge7 {[%emt 0:00:30]} 4. O-O {[%emt 0:01:00]} Ng6 {[%emt 0:00:30]} 5. d4 {[%emt 0:00:30]} Nxd4 {[%emt 0:00:30]} 6. Nxd4 {[%emt 0:00:00]} exd4 {[%emt 0:00:30]} 7. Qxd4 {[%emt 0:01:00]} c6 {[%emt 0:00:30]} 8. Be2 {[%emt 0:00:30] White is slightly better.} Qb6 {[%emt 0:00:30]} 9. Qc3 {[%emt 0:00:30]} Qc5 {[%emt 0:00:30]} 10. Qd3 {[%emt 0:00:30]} Qd6 {[%emt 0:00:30]} 11. f4 {[%emt 0:00:30]} Qxd3 {[%emt 0:00:30]} 12. cxd3 {[%emt 0:00:30]} Bc5+ {[%emt 0:00:00]} 13. Kh1 {[%emt 0:00:30]} f5 {[%emt 0:01:00]} 14. Nd2 {[%emt 0:00:30]} O-O {[%emt 0:00:30]} 15. Nb3 {[%emt 0:00:00]} Bb6 16. exf5 {[%emt 0:01:00]} Rxf5 {[%emt 0:00:00]} 17. g4 {[%emt 0:00:30]} Rf7 {[%emt 0:00:00]} 18. f5 {[%emt 0:00:30]} Nf8 {[%emt 0:02:00][%cal Oh7h5]} 19. Bf4 {[%emt 0:00:00]} d5 {[%emt 0:00:30] The position is equal.} 20. d4 {[%emt 0:01:00]} h5 {[%emt 0:00:00]} 21. h3 {[%emt 0:00:00]} (21. gxh5 $2 Bxf5 (21... Rxf5 22. Bd6 $11) 22. Rae1 Ne6 $19) 21... hxg4 {[%emt 0:00:00]} 22. hxg4 {[%emt 0:01:00]} g6 {[%emt 0:01:30]} 23. fxg6 {[%emt 0:00:00]} (23. Rg1 Rh7+ (23... Ne6 24. Be5 $14) 24. Kg2 (24. Bh2 Bc7 $17) 24... gxf5 $17) 23... Nxg6 {[%emt 0:00:30]} 24. Bh6 {[%emt 0:01:00] [#] And now Rxf7 would win.} Be6 {[%emt 0:00:30]} 25. Bd3 {[%emt 0:00:30]} Nh4 {[%emt 0:00:30]} ({Wrong is} 25... Rh7 $2 26. g5 Bf7 27. Rxf7 (27. Rf6 Bd8 $18) 27... Rxf7 (27... Kxf7 $2 28. Rf1+ Ke7 29. Bxg6 $18) 28. Bxg6 $18) 26. Rae1 {[%emt 0:00:30]} Rxf1+ {[%emt 0:00:30]} (26... Bxg4 27. Rg1 Rg7 28. Bxg7 $18) 27. Rxf1 {[%emt 0:00:30]} Bf7 $1 {[%emt 0:00:30]} (27... Bxg4 $2 {too greedy.} 28. Rg1 $18) 28. Bg5 {[%emt 0:00:30]} Bg6 {[%emt 0:00:30]} 29. Bxg6 {[%emt 0:00:00]} Nxg6 {[%emt 0:00:30]} 30. Rf6 {[%emt 0:01:00]} Kg7 {[%emt 0:00:30]} 31. Rd6 {[%emt 0:00:30]} Rf8 {[%emt 0:00:30]} 32. Rd7+ {[%emt 0:00:30]} Rf7 {[%emt 0:00:30]} 33. Rxf7+ {[%emt 0:00:00]} Kxf7 {[%emt 0:00:30]} 34. Kg2 {[%emt 0:01:00]} Nf8 {[%emt 0:00:30]} 35. Kf3 {[%emt 0:00:00]} Ne6 {[%emt 0:00:00]} 36. Be3 {[%emt 0:00:00]} Bd8 37. Ke2 {[%emt 0:01:30]} b6 {[%emt 0:01:30] Weighted Error Value: White=0.04 (flawless) /Black=0.04 (flawless) .  Inaccurate:     	White=2     	Black=2      OK:         	White=17    	Black=14     Best:        	White=1     	Black=4      Strong:       	---       	Black=1} 1/2-1/2